[Event "*** Titled Tuesday Blitz"]
[Site "Chess.com"]
[Date "2020.05.26"]
[Round "9"]
[White "MuhittinBuker"]
[Black "orrbaverlekszarnyon"]
[Result "0-1"]
[WhiteElo "1892"]
[BlackElo "2191"]
[TimeControl "180+1"]
[EndTime "11:52:23 PDT"]
[Termination "orrbaverlekszarnyon won on time"]

1. d4 {[%clk 0:03:00.9]} 1... Nf6 {[%clk 0:02:59.6]} 2. c4 {[%clk 0:03:00.1]}
2... Nc6 {[%clk 0:02:59.9]} 3. Nc3 {[%clk 0:02:58.8]} 3... e5 {[%clk 0:02:59.7]}
4. d5 {[%clk 0:02:57.6]} 4... Ne7 {[%clk 0:02:59.9]} 5. e4 {[%clk 0:02:58.2]}
5... Ng6 {[%clk 0:03:00.2]} 6. f3 {[%clk 0:02:57]} 6... Bc5 {[%clk 0:02:59.5]}
7. Bd3 {[%clk 0:02:52.1]} 7... O-O {[%clk 0:02:59.1]} 8. Nge2 {[%clk 0:02:51.2]}
8... d6 {[%clk 0:02:55.4]} 9. Na4 {[%clk 0:02:50.5]} 9... Bb4+ {[%clk 0:02:53]}
10. Bd2 {[%clk 0:02:51]} 10... Bxd2+ {[%clk 0:02:52.7]} 11. Qxd2 {[%clk
0:02:51.8]} 11... Nh5 {[%clk 0:02:53]} 12. O-O-O {[%clk 0:02:40.2]} 12... Bd7
{[%clk 0:02:47.1]} 13. Nac3 {[%clk 0:02:38.7]} 13... a6 {[%clk 0:02:47.6]} 14.
Kb1 {[%clk 0:02:38]} 14... b5 {[%clk 0:02:47.6]} 15. Rc1 {[%clk 0:02:34.2]}
15... Nhf4 {[%clk 0:02:39.1]} 16. Nxf4 {[%clk 0:02:32.8]} 16... Nxf4 {[%clk
0:02:40]} 17. Bf1 {[%clk 0:02:32.4]} 17... Qb8 {[%clk 0:02:35.6]} 18. g3 {[%clk
0:02:31.8]} 18... Ng6 {[%clk 0:02:35.3]} 19. f4 {[%clk 0:02:29.1]} 19... bxc4
{[%clk 0:02:24]} 20. h4 {[%clk 0:02:18.9]} 20... Qb4 {[%clk 0:02:09.6]} 21. h5
{[%clk 0:02:18.2]} 21... Ne7 {[%clk 0:02:08.6]} 22. f5 {[%clk 0:02:17.6]} 22...
Nxf5 {[%clk 0:01:50.8]} 23. exf5 {[%clk 0:02:16.5]} 23... Bxf5+ {[%clk
0:01:51.7]} 24. Ka1 {[%clk 0:02:15.1]} 24... a5 {[%clk 0:01:52.1]} 25. Qg5
{[%clk 0:02:00.9]} 25... g6 {[%clk 0:01:48.8]} 26. Qf6 {[%clk 0:01:58.7]} 26...
Rfb8 {[%clk 0:01:32.2]} 27. Rh2 {[%clk 0:01:57.2]} 27... a4 {[%clk 0:01:27.4]}
28. a3 {[%clk 0:01:36.1]} 28... Qc5 {[%clk 0:01:15.1]} 29. g4 {[%clk 0:00:18.7]}
29... Bxg4 {[%clk 0:01:13.4]} 30. hxg6 {[%clk 0:00:16.7]} 30... fxg6 {[%clk
0:01:06.2]} 31. Be2 {[%clk 0:00:10.9]} 31... Bxe2 {[%clk 0:00:51.1]} 32. Rxh7
{[%clk 0:00:09.2]} 32... Kxh7 {[%clk 0:00:48.6]} 33. Ne4 {[%clk 0:00:08.2]}
33... Qe3 {[%clk 0:00:38.7]} 34. Ng5+ {[%clk 0:00:07.2]} 34... Kh6 {[%clk
0:00:37.2]} 35. Nf7+ {[%clk 0:00:07]} 35... Kh7 {[%clk 0:00:34.9]} 36. Ng5+
{[%clk 0:00:06.6]} 36... Kh6 {[%clk 0:00:34.7]} 37. Nf7+ {[%clk 0:00:06.5]}
37... Kh5 {[%clk 0:00:25.5]} 38. Rh1+ {[%clk 0:00:04.2]} 38... Kg4 {[%clk
0:00:25]} 39. Qxg6+ {[%clk 0:00:03.6]} 39... Kf3 {[%clk 0:00:20.5]} 40. Rh3+
{[%clk 0:00:03.5]} 40... Kf2 {[%clk 0:00:20.4]} 41. Rxe3 {[%clk 0:00:03.3]}
41... Kxe3 {[%clk 0:00:21.3]} 42. Qg3+ {[%clk 0:00:02.7]} 42... Bf3 {[%clk
0:00:20.8]} 43. Qe1+ {[%clk 0:00:02.3]} 43... Kf4 {[%clk 0:00:20.9]} 44. Qc1+
{[%clk 0:00:02.4]} 44... Kf5 {[%clk 0:00:20]} 45. Qg5+ {[%clk 0:00:01.2]} 45...
Ke4 {[%clk 0:00:20.2]} 0-1

[Event "*** Titled Tuesday Blitz"]
[Site "Chess.com"]
[Date "2020.05.26"]
[Round "9"]
[White "Shota_Azaladze"]
[Black "temus_galaktionov"]
[Result "1-0"]
[WhiteElo "2842"]
[BlackElo "2702"]
[TimeControl "180+1"]
[EndTime "11:52:24 PDT"]
[Termination "Shota_Azaladze won by resignation"]

1. Nf3 {[%clk 0:03:00.9]} 1... c6 {[%clk 0:03:00.7]} 2. g3 {[%clk 0:03:00.7]}
2... g6 {[%clk 0:03:00.4]} 3. Bg2 {[%clk 0:03:01.6]} 3... Bg7 {[%clk 0:02:56.9]}
4. O-O {[%clk 0:03:02]} 4... d6 {[%clk 0:02:57]} 5. d4 {[%clk 0:03:01.6]} 5...
Nd7 {[%clk 0:02:57.5]} 6. c4 {[%clk 0:03:01.6]} 6... e5 {[%clk 0:02:57.6]} 7.
Nc3 {[%clk 0:03:01.5]} 7... Ngf6 {[%clk 0:02:57.6]} 8. e4 {[%clk 0:03:01.5]}
8... O-O {[%clk 0:02:56.1]} 9. Re1 {[%clk 0:03:01.6]} 9... Re8 {[%clk
0:02:52.9]} 10. h3 {[%clk 0:03:00.9]} 10... a5 {[%clk 0:02:51.2]} 11. b3 {[%clk
0:02:58.3]} 11... exd4 {[%clk 0:02:49.5]} 12. Nxd4 {[%clk 0:02:57.7]} 12... Nc5
{[%clk 0:02:43.5]} 13. Bf4 {[%clk 0:02:56.8]} 13... Nh5 {[%clk 0:02:37]} 14. Be3
{[%clk 0:02:56.6]} 14... Qc7 {[%clk 0:02:34.8]} 15. Qc2 {[%clk 0:02:53.8]} 15...
Bd7 {[%clk 0:02:30.4]} 16. Rad1 {[%clk 0:02:52.7]} 16... Rad8 {[%clk 0:02:28.4]}
17. g4 {[%clk 0:02:42.8]} 17... Nf6 {[%clk 0:02:26.4]} 18. f4 {[%clk 0:02:43.3]}
18... Bc8 {[%clk 0:02:20.6]} 19. Bf2 {[%clk 0:02:43]} 19... Re7 {[%clk
0:02:17.8]} 20. a3 {[%clk 0:02:28.4]} 20... Rde8 {[%clk 0:02:10.5]} 21. b4
{[%clk 0:02:25]} 21... axb4 {[%clk 0:02:11.4]} 22. axb4 {[%clk 0:02:25.3]} 22...
Na6 {[%clk 0:02:11.4]} 23. b5 {[%clk 0:02:13.8]} 23... Nc5 {[%clk 0:02:10.1]}
24. bxc6 {[%clk 0:02:13.5]} 24... bxc6 {[%clk 0:02:11]} 25. e5 {[%clk
0:02:07.2]} 25... dxe5 {[%clk 0:01:34]} 26. Nxc6 {[%clk 0:02:04.9]} 26... exf4
{[%clk 0:01:33.8]} 27. Nxe7+ {[%clk 0:02:01.6]} 27... Rxe7 {[%clk 0:01:34.7]}
28. Nb5 {[%clk 0:01:49.6]} 28... Rxe1+ {[%clk 0:01:25.4]} 29. Rxe1 {[%clk
0:01:50.5]} 29... Qa5 {[%clk 0:01:03.8]} 30. g5 {[%clk 0:01:45.3]} 30... Bf5
{[%clk 0:00:50.1]} 31. Qc3 {[%clk 0:01:13.2]} 31... Qxc3 {[%clk 0:00:48.7]} 32.
Nxc3 {[%clk 0:01:14.1]} 32... Nfd7 {[%clk 0:00:48.8]} 33. Re8+ {[%clk
0:01:13.8]} 33... Bf8 {[%clk 0:00:48.6]} 34. Nd5 {[%clk 0:01:13.8]} 34... Ne6
{[%clk 0:00:44.2]} 35. Nf6+ {[%clk 0:01:09.9]} 35... Nxf6 {[%clk 0:00:41.4]} 36.
gxf6 {[%clk 0:01:10.8]} 36... h6 {[%clk 0:00:32.6]} 37. Bd5 {[%clk 0:01:04.8]}
37... Bxh3 {[%clk 0:00:21.3]} 38. Bxe6 {[%clk 0:01:01.4]} 38... Bxe6 {[%clk
0:00:19.2]} 39. Bc5 {[%clk 0:01:01.2]} 39... Bxc4 {[%clk 0:00:18.2]} 40. Bxf8
{[%clk 0:01:00.9]} 40... Kh7 {[%clk 0:00:18.1]} 41. Bg7 {[%clk 0:00:56.4]} 41...
g5 {[%clk 0:00:18.2]} 42. Rh8+ {[%clk 0:00:56.4]} 42... Kg6 {[%clk 0:00:19.1]}
43. Rxh6+ {[%clk 0:00:56.9]} 43... Kf5 {[%clk 0:00:20]} 44. Bf8 {[%clk
0:00:53.5]} 44... g4 {[%clk 0:00:18.5]} 45. Bd6 {[%clk 0:00:51]} 45... Kg5
{[%clk 0:00:16]} 46. Rh8 {[%clk 0:00:50.5]} 46... g3 {[%clk 0:00:15.4]} 47. Rc8
{[%clk 0:00:46.2]} 47... Be6 {[%clk 0:00:13.6]} 48. Rb8 {[%clk 0:00:42.7]} 48...
Bh3 {[%clk 0:00:06.2]} 49. Rb4 {[%clk 0:00:42]} 49... g2 {[%clk 0:00:04.3]} 50.
Bxf4+ {[%clk 0:00:40.9]} 50... Kxf6 {[%clk 0:00:03.7]} 51. Be3 {[%clk
0:00:40.9]} 51... Ke6 {[%clk 0:00:03.9]} 52. Kh2 {[%clk 0:00:41]} 52... Kf5
{[%clk 0:00:04.4]} 53. Kxh3 {[%clk 0:00:40.5]} 1-0

[Event "*** Titled Tuesday Blitz"]
[Site "Chess.com"]
[Date "2020.05.26"]
[Round "9"]
[White "Lovinski"]
[Black "ChronicUnhappiness"]
[Result "1/2-1/2"]
[WhiteElo "2399"]
[BlackElo "2281"]
[TimeControl "180+1"]
[EndTime "11:52:25 PDT"]
[Termination "Game drawn by repetition"]

1. Nf3 {[%clk 0:03:00.9]} 1... Nf6 {[%clk 0:03:00.9]} 2. g3 {[%clk 0:03:01]}
2... g6 {[%clk 0:03:00.5]} 3. Bg2 {[%clk 0:03:01.4]} 3... Bg7 {[%clk 0:03:01.4]}
4. d4 {[%clk 0:03:01.7]} 4... O-O {[%clk 0:03:02.3]} 5. O-O {[%clk 0:03:01.3]}
5... d6 {[%clk 0:03:02.6]} 6. b3 {[%clk 0:03:00.9]} 6... c5 {[%clk 0:02:55.5]}
7. Bb2 {[%clk 0:02:59.2]} 7... Ne4 {[%clk 0:02:50.9]} 8. Nbd2 {[%clk 0:02:55.1]}
8... Nxd2 {[%clk 0:02:49.3]} 9. Qxd2 {[%clk 0:02:56]} 9... Nc6 {[%clk
0:02:49.7]} 10. c4 {[%clk 0:02:53.8]} 10... Bg4 {[%clk 0:02:48]} 11. dxc5 {[%clk
0:02:49]} 11... dxc5 {[%clk 0:02:44.3]} 12. Bxg7 {[%clk 0:02:42.2]} 12... Qxd2
{[%clk 0:02:37.4]} 13. Nxd2 {[%clk 0:02:43.1]} 13... Kxg7 {[%clk 0:02:37.2]} 14.
Bxc6 {[%clk 0:02:42.6]} 14... bxc6 {[%clk 0:02:36.3]} 15. f3 {[%clk 0:02:41.3]}
15... Bf5 {[%clk 0:02:31]} 16. g4 {[%clk 0:02:40.6]} 16... Rfd8 {[%clk
0:02:24.7]} 17. gxf5 {[%clk 0:01:48.4]} 17... Rxd2 {[%clk 0:02:21.3]} 18. fxg6
{[%clk 0:01:48.5]} 18... hxg6 {[%clk 0:02:22]} 19. Kf2 {[%clk 0:01:49]} 19...
Rad8 {[%clk 0:02:18.6]} 20. Rfc1 {[%clk 0:01:45.7]} 20... Rb2 {[%clk 0:02:14]}
21. Rcb1 {[%clk 0:01:42.9]} 21... Rdd2 {[%clk 0:02:10.3]} 22. Rxb2 {[%clk
0:01:43.3]} 22... Rxb2 {[%clk 0:02:11.2]} 23. Ke3 {[%clk 0:01:43.7]} 23... f5
{[%clk 0:02:07]} 24. Rd1 {[%clk 0:01:39.8]} 24... Rxa2 {[%clk 0:02:04.4]} 25.
Rd7 {[%clk 0:01:39.3]} 25... Kf7 {[%clk 0:02:00.6]} 26. Rc7 {[%clk 0:01:39.5]}
26... Ra6 {[%clk 0:01:38.9]} 27. h4 {[%clk 0:01:21.9]} 27... Kf6 {[%clk
0:01:37.3]} 28. f4 {[%clk 0:01:19.9]} 28... e6 {[%clk 0:01:28.4]} 29. Kd3 {[%clk
0:01:16.9]} 29... e5 {[%clk 0:01:10.8]} 30. fxe5+ {[%clk 0:01:10]} 30... Kxe5
{[%clk 0:01:11.7]} 31. Re7+ {[%clk 0:01:05.7]} 31... Kf6 {[%clk 0:01:05.7]} 32.
Rc7 {[%clk 0:01:05.7]} 32... g5 {[%clk 0:00:57.8]} 33. hxg5+ {[%clk 0:01:02.7]}
33... Kxg5 {[%clk 0:00:58.7]} 34. Re7 {[%clk 0:00:49.7]} 34... Ra3 {[%clk
0:00:52.5]} 35. Kc3 {[%clk 0:00:49.4]} 35... Kf4 {[%clk 0:00:49.8]} 36. e3+
{[%clk 0:00:47.2]} 36... Kf3 {[%clk 0:00:46.3]} 37. Re5 {[%clk 0:00:47.4]} 37...
a5 {[%clk 0:00:46.3]} 38. Rxf5+ {[%clk 0:00:44.9]} 38... Kxe3 {[%clk 0:00:46.3]}
39. Rxc5 {[%clk 0:00:45.3]} 39... a4 {[%clk 0:00:46.3]} 40. Kb4 {[%clk
0:00:28.4]} 40... Rxb3+ {[%clk 0:00:42.6]} 41. Kxa4 {[%clk 0:00:28.7]} 41... Kd4
{[%clk 0:00:35.9]} 42. Rxc6 {[%clk 0:00:25.6]} 42... Rb1 {[%clk 0:00:35.8]} 43.
Rc8 {[%clk 0:00:22.4]} 43... Rc1 {[%clk 0:00:32.6]} 44. Kb5 {[%clk 0:00:22]}
44... Rb1+ {[%clk 0:00:32.1]} 45. Ka5 {[%clk 0:00:20.4]} 45... Ra1+ {[%clk
0:00:30]} 46. Kb6 {[%clk 0:00:20.8]} 46... Rb1+ {[%clk 0:00:29.7]} 47. Ka6
{[%clk 0:00:20.2]} 47... Ra1+ {[%clk 0:00:28.5]} 48. Kb6 {[%clk 0:00:18.1]}
48... Rb1+ {[%clk 0:00:26]} 49. Ka5 {[%clk 0:00:17.4]} 49... Ra1+ {[%clk
0:00:16.1]} 50. Kb6 {[%clk 0:00:16.8]} 1/2-1/2

[Event "*** Titled Tuesday Blitz"]
[Site "Chess.com"]
[Date "2020.05.26"]
[Round "9"]
[White "Fins0905"]
[Black "MartinCerveny"]
[Result "1/2-1/2"]
[WhiteElo "2647"]
[BlackElo "2522"]
[TimeControl "180+1"]
[EndTime "11:52:26 PDT"]
[Termination "Game drawn by repetition"]

1. d4 {[%clk 0:03:00.9]} 1... d5 {[%clk 0:03:00.3]} 2. c4 {[%clk 0:03:00.3]}
2... c6 {[%clk 0:03:00.7]} 3. cxd5 {[%clk 0:02:57.8]} 3... cxd5 {[%clk
0:02:59.2]} 4. Bg5 {[%clk 0:02:58.3]} 4... Nc6 {[%clk 0:02:58.2]} 5. Nc3 {[%clk
0:02:57.8]} 5... h6 {[%clk 0:02:58.4]} 6. Bh4 {[%clk 0:02:57.5]} 6... Qa5 {[%clk
0:02:54.2]} 7. e3 {[%clk 0:02:56.1]} 7... e6 {[%clk 0:02:54.2]} 8. Bd3 {[%clk
0:02:51.7]} 8... b6 {[%clk 0:02:46.9]} 9. a3 {[%clk 0:02:34.9]} 9... b5 {[%clk
0:02:12.6]} 10. Bxb5 {[%clk 0:02:30.4]} 10... Bd7 {[%clk 0:02:10.7]} 11. Nf3
{[%clk 0:02:26]} 11... Nf6 {[%clk 0:02:05.1]} 12. O-O {[%clk 0:02:17.4]} 12...
Bd6 {[%clk 0:02:04.5]} 13. b4 {[%clk 0:02:14]} 13... Qb6 {[%clk 0:01:58.6]} 14.
Bd3 {[%clk 0:02:11.5]} 14... Ne7 {[%clk 0:01:39.5]} 15. Na4 {[%clk 0:02:05.8]}
15... Bxa4 {[%clk 0:01:37.9]} 16. Qxa4+ {[%clk 0:02:04.8]} 16... Kf8 {[%clk
0:01:37.2]} 17. Ne5 {[%clk 0:01:53.1]} 17... g5 {[%clk 0:01:25.3]} 18. Bg3
{[%clk 0:01:49.9]} 18... Kg7 {[%clk 0:01:25.1]} 19. f4 {[%clk 0:01:22.3]} 19...
Bxe5 {[%clk 0:01:14.2]} 20. fxe5 {[%clk 0:01:20.7]} 20... Ne4 {[%clk 0:01:11.8]}
21. Bxe4 {[%clk 0:01:18.6]} 21... dxe4 {[%clk 0:01:10.7]} 22. Rac1 {[%clk
0:00:48.8]} 22... Rhc8 {[%clk 0:00:58.3]} 23. Qd7 {[%clk 0:00:40.1]} 23... Rxc1
{[%clk 0:00:39.1]} 24. Rxc1 {[%clk 0:00:41]} 24... Nf5 {[%clk 0:00:38.6]} 25.
Bf2 {[%clk 0:00:40.9]} 25... g4 {[%clk 0:00:34.8]} 26. Rc7 {[%clk 0:00:31.3]}
26... Rf8 {[%clk 0:00:34.2]} 27. Rxa7 {[%clk 0:00:28.7]} 27... Qb8 {[%clk
0:00:23.2]} 28. Rc7 {[%clk 0:00:19.6]} 28... Qa8 {[%clk 0:00:20.4]} 29. Qxe6
{[%clk 0:00:17.7]} 29... Qxa3 {[%clk 0:00:15.2]} 30. g3 {[%clk 0:00:07.2]} 30...
Nxe3 {[%clk 0:00:14.4]} 31. Qf6+ {[%clk 0:00:06.7]} 31... Kg8 {[%clk 0:00:14]}
32. Bxe3 {[%clk 0:00:04.4]} 32... Qxe3+ {[%clk 0:00:14.9]} 33. Qf2 {[%clk
0:00:04.8]} 33... Qd3 {[%clk 0:00:13.9]} 34. Qf6 {[%clk 0:00:02.8]} 34... Qe3+
{[%clk 0:00:11.8]} 35. Kg2 {[%clk 0:00:03.2]} 35... Qe2+ {[%clk 0:00:11.9]} 36.
Qf2 {[%clk 0:00:03.1]} 36... Qd3 {[%clk 0:00:12.1]} 37. Qf6 {[%clk 0:00:02.6]}
37... e3 {[%clk 0:00:11.6]} 38. Qxh6 {[%clk 0:00:02.6]} 38... Qe4+ {[%clk
0:00:11.7]} 39. Kg1 {[%clk 0:00:02.7]} 39... e2 {[%clk 0:00:08.4]} 40. Qg5+
{[%clk 0:00:03]} 40... Kh8 {[%clk 0:00:08.4]} 41. Qh5+ {[%clk 0:00:02.7]} 41...
Kg8 {[%clk 0:00:08.5]} 42. Qg5+ {[%clk 0:00:03]} 42... Kh8 {[%clk 0:00:08.8]}
43. Qh5+ {[%clk 0:00:03.5]} 43... Kg8 {[%clk 0:00:09.2]} 44. Qg5+ {[%clk
0:00:04]} 1/2-1/2

[Event "*** Titled Tuesday Blitz"]
[Site "Chess.com"]
[Date "2020.05.26"]
[Round "9"]
[White "SoltaniciR"]
[Black "fabianvivasz"]
[Result "1-0"]
[WhiteElo "2474"]
[BlackElo "2303"]
[TimeControl "180+1"]
[EndTime "11:52:26 PDT"]
[Termination "SoltaniciR won on time"]

1. e4 {[%clk 0:03:00.9]} 1... c5 {[%clk 0:02:58]} 2. Nf3 {[%clk 0:03:00.8]} 2...
d6 {[%clk 0:02:57.6]} 3. d4 {[%clk 0:03:00.6]} 3... cxd4 {[%clk 0:02:58.5]} 4.
Nxd4 {[%clk 0:03:01]} 4... Nf6 {[%clk 0:02:59.1]} 5. Nc3 {[%clk 0:03:01.5]} 5...
a6 {[%clk 0:02:59.7]} 6. Be3 {[%clk 0:03:02.1]} 6... e5 {[%clk 0:03:00]} 7. Nf3
{[%clk 0:03:02.4]} 7... Qc7 {[%clk 0:02:47.5]} 8. a4 {[%clk 0:03:00.8]} 8... Be7
{[%clk 0:02:39.8]} 9. a5 {[%clk 0:03:00.2]} 9... Be6 {[%clk 0:02:35]} 10. Be2
{[%clk 0:03:00.1]} 10... Nbd7 {[%clk 0:02:33]} 11. Nd5 {[%clk 0:03:00.1]} 11...
Nxd5 {[%clk 0:02:19.9]} 12. exd5 {[%clk 0:03:01]} 12... Bf5 {[%clk 0:02:20.4]}
13. c4 {[%clk 0:03:01.1]} 13... O-O {[%clk 0:02:14.6]} 14. O-O {[%clk
0:03:00.8]} 14... Bg6 {[%clk 0:02:11.6]} 15. b4 {[%clk 0:03:00.4]} 15... f5
{[%clk 0:02:10.2]} 16. Qb3 {[%clk 0:02:44.3]} 16... f4 {[%clk 0:02:03.5]} 17.
Bd2 {[%clk 0:02:44]} 17... e4 {[%clk 0:01:59.4]} 18. Nd4 {[%clk 0:02:43.2]}
18... f3 {[%clk 0:01:24.9]} 19. Ne6 {[%clk 0:02:12.2]} 19... Qc8 {[%clk
0:01:22.2]} 20. gxf3 {[%clk 0:02:12.2]} 20... Rf6 {[%clk 0:01:18]} 21. f4 {[%clk
0:02:02.2]} 21... Bf5 {[%clk 0:01:12]} 22. Kh1 {[%clk 0:01:55.7]} 22... Bxe6
{[%clk 0:01:01.1]} 23. dxe6 {[%clk 0:01:55]} 23... Nf8 {[%clk 0:01:00.5]} 24. c5
{[%clk 0:01:24.1]} 24... Nxe6 {[%clk 0:00:47.8]} 25. cxd6 {[%clk 0:00:47.2]}
25... Bxd6 {[%clk 0:00:48.7]} 26. Qd5 {[%clk 0:00:40.3]} 26... Bxf4 {[%clk
0:00:40]} 27. Bxf4 {[%clk 0:00:36.5]} 27... Rxf4 {[%clk 0:00:40.9]} 28. Rac1
{[%clk 0:00:17.9]} 28... Qe8 {[%clk 0:00:40.7]} 29. Bc4 {[%clk 0:00:14.5]} 29...
Rf6 {[%clk 0:00:32.1]} 30. Rfe1 {[%clk 0:00:11.7]} 30... Kh8 {[%clk 0:00:22.6]}
31. Rxe4 {[%clk 0:00:11.5]} 31... Rc8 {[%clk 0:00:13.7]} 32. Rce1 {[%clk
0:00:09.4]} 32... Qf7 {[%clk 0:00:07.6]} 33. Rxe6 {[%clk 0:00:09]} 33... Rxe6
{[%clk 0:00:06.9]} 34. Qxe6 {[%clk 0:00:09.1]} 34... Qf3+ {[%clk 0:00:06.8]} 35.
Kg1 {[%clk 0:00:09.1]} 35... Rf8 {[%clk 0:00:06.5]} 36. Bd5 {[%clk 0:00:08.3]}
36... Qxf2+ {[%clk 0:00:06.4]} 37. Kh1 {[%clk 0:00:08.7]} 37... h6 {[%clk
0:00:05.7]} 38. Bxb7 {[%clk 0:00:07.8]} 38... Rf6 {[%clk 0:00:04]} 39. Qe8+
{[%clk 0:00:07.1]} 39... Rf8 {[%clk 0:00:03.6]} 40. Qe3 {[%clk 0:00:05.5]} 40...
Qf6 {[%clk 0:00:01.5]} 41. Bg2 {[%clk 0:00:04.3]} 1-0

[Event "*** Titled Tuesday Blitz"]
[Site "Chess.com"]
[Date "2020.05.26"]
[Round "9"]
[White "kuban1991"]
[Black "Escanor89"]
[Result "1-0"]
[WhiteElo "2718"]
[BlackElo "2568"]
[TimeControl "180+1"]
[EndTime "11:52:27 PDT"]
[Termination "kuban1991 won on time"]

1. e4 {[%clk 0:03:00.9]} 1... c5 {[%clk 0:02:59.5]} 2. Nc3 {[%clk 0:03:00.4]}
2... Nc6 {[%clk 0:02:57.6]} 3. Nge2 {[%clk 0:03:00.6]} 3... d6 {[%clk
0:02:55.4]} 4. d3 {[%clk 0:03:00.6]} 4... Nf6 {[%clk 0:02:53.6]} 5. h3 {[%clk
0:03:00.1]} 5... g6 {[%clk 0:02:52.2]} 6. g4 {[%clk 0:03:00.4]} 6... Bg7 {[%clk
0:02:52.2]} 7. Bg2 {[%clk 0:03:01]} 7... Rb8 {[%clk 0:02:51.1]} 8. f4 {[%clk
0:02:59.7]} 8... O-O {[%clk 0:02:49.5]} 9. Be3 {[%clk 0:02:54.2]} 9... a6 {[%clk
0:02:24.6]} 10. Qd2 {[%clk 0:02:52.7]} 10... Nd7 {[%clk 0:02:15.9]} 11. h4
{[%clk 0:02:50.5]} 11... Nd4 {[%clk 0:02:12.2]} 12. h5 {[%clk 0:02:49.4]} 12...
Nxe2 {[%clk 0:02:08.5]} 13. Kxe2 {[%clk 0:02:44]} 13... Nf6 {[%clk 0:02:07.5]}
14. g5 {[%clk 0:02:27.7]} 14... Bg4+ {[%clk 0:02:05.6]} 15. Bf3 {[%clk
0:02:23.8]} 15... Bxf3+ {[%clk 0:02:03.7]} 16. Kxf3 {[%clk 0:02:24.7]} 16...
Nxh5 {[%clk 0:02:03.2]} 17. Rxh5 {[%clk 0:02:06.8]} 17... gxh5 {[%clk
0:02:02.5]} 18. Qh2 {[%clk 0:02:05.9]} 18... f6 {[%clk 0:01:58.9]} 19. Qxh5
{[%clk 0:02:05]} 19... Qe8 {[%clk 0:01:57.6]} 20. Qg4 {[%clk 0:01:38.1]} 20...
fxg5 {[%clk 0:01:55.2]} 21. Qxg5 {[%clk 0:01:39]} 21... e6 {[%clk 0:01:45.1]}
22. Rg1 {[%clk 0:01:34.8]} 22... Qf7 {[%clk 0:01:40.3]} 23. Ke2 {[%clk
0:01:31.3]} 23... Qf6 {[%clk 0:01:31.9]} 24. Qh5 {[%clk 0:01:21.9]} 24... Rbe8
{[%clk 0:01:15.5]} 25. Rg5 {[%clk 0:01:08.1]} 25... Kh8 {[%clk 0:00:52.2]} 26.
Rg1 {[%clk 0:00:49.7]} 26... Qh6 {[%clk 0:00:47.7]} 27. Qf3 {[%clk 0:00:42.6]}
27... Rg8 {[%clk 0:00:34.3]} 28. Rh1 {[%clk 0:00:42.3]} 28... Qg6 {[%clk
0:00:32.5]} 29. f5 {[%clk 0:00:38.6]} 29... exf5 {[%clk 0:00:31.1]} 30. exf5
{[%clk 0:00:39.5]} 30... Qg5 {[%clk 0:00:22.1]} 31. Ne4 {[%clk 0:00:37.5]} 31...
Rxe4 {[%clk 0:00:18.2]} 32. dxe4 {[%clk 0:00:38.4]} 32... Qf6 {[%clk 0:00:17.9]}
33. c3 {[%clk 0:00:36.4]} 33... h6 {[%clk 0:00:15]} 34. Qh5 {[%clk 0:00:30.3]}
34... Kh7 {[%clk 0:00:14.9]} 35. Rg1 {[%clk 0:00:29.7]} 35... Rf8 {[%clk
0:00:14]} 36. Rg6 {[%clk 0:00:24.7]} 36... Qe5 {[%clk 0:00:10.2]} 37. Bxh6
{[%clk 0:00:23.9]} 37... Qxe4+ {[%clk 0:00:07.3]} 38. Be3+ {[%clk 0:00:20.3]}
38... Kg8 {[%clk 0:00:07.1]} 39. Qg5 {[%clk 0:00:16.3]} 39... Rf7 {[%clk
0:00:06.4]} 40. f6 {[%clk 0:00:15.2]} 40... Qc2+ {[%clk 0:00:06]} 41. Bd2 {[%clk
0:00:15.2]} 41... Qe4+ {[%clk 0:00:05.8]} 42. Kd1 {[%clk 0:00:14.9]} 42... Rxf6
{[%clk 0:00:03.5]} 43. Rxf6 {[%clk 0:00:13.3]} 1-0

[Event "*** Titled Tuesday Blitz"]
[Site "Chess.com"]
[Date "2020.05.26"]
[Round "9"]
[White "Belka1989"]
[Black "levallem"]
[Result "0-1"]
[WhiteElo "2327"]
[BlackElo "2175"]
[TimeControl "180+1"]
[EndTime "11:52:28 PDT"]
[Termination "levallem won on time"]

1. e4 {[%clk 0:03:00.9]} 1... c5 {[%clk 0:02:59.7]} 2. Nf3 {[%clk 0:03:01.3]}
2... Nc6 {[%clk 0:02:59.2]} 3. d4 {[%clk 0:03:01.5]} 3... cxd4 {[%clk
0:03:00.1]} 4. Nxd4 {[%clk 0:03:01.3]} 4... g6 {[%clk 0:03:00.7]} 5. c4 {[%clk
0:03:01.1]} 5... Nf6 {[%clk 0:03:00.3]} 6. Nc3 {[%clk 0:03:00.6]} 6... Nxd4
{[%clk 0:03:00.5]} 7. Qxd4 {[%clk 0:03:00.5]} 7... d6 {[%clk 0:02:59]} 8. Be2
{[%clk 0:02:59.8]} 8... Bg7 {[%clk 0:02:56.9]} 9. Be3 {[%clk 0:03:00.3]} 9...
O-O {[%clk 0:02:50.8]} 10. Qd2 {[%clk 0:03:00.7]} 10... Be6 {[%clk 0:02:45.7]}
11. O-O {[%clk 0:02:59.5]} 11... Qa5 {[%clk 0:02:45.6]} 12. Nd5 {[%clk
0:02:57.1]} 12... Qxd2 {[%clk 0:02:43.8]} 13. Nxf6+ {[%clk 0:02:16.3]} 13...
Bxf6 {[%clk 0:02:41.3]} 14. Bxd2 {[%clk 0:02:16.8]} 14... Rac8 {[%clk
0:02:27.9]} 15. Rac1 {[%clk 0:02:16]} 15... Bxb2 {[%clk 0:02:25.2]} 16. Rb1
{[%clk 0:02:16.3]} 16... Bd4 {[%clk 0:02:24.4]} 17. Rxb7 {[%clk 0:02:13.4]}
17... Rfe8 {[%clk 0:02:14.4]} 18. Rc1 {[%clk 0:02:03.2]} 18... Rc6 {[%clk
0:02:02]} 19. Bh6 {[%clk 0:01:26.4]} 19... Bb6 {[%clk 0:01:55.3]} 20. a4 {[%clk
0:01:18.1]} 20... Bc8 {[%clk 0:01:23.8]} 21. Rb8 {[%clk 0:01:10.6]} 21... f6
{[%clk 0:01:17.2]} 22. Ra8 {[%clk 0:00:58.3]} 22... Bd7 {[%clk 0:01:10.7]} 23.
Rxe8+ {[%clk 0:00:55.3]} 23... Bxe8 {[%clk 0:01:11.6]} 24. Bd2 {[%clk 0:00:19]}
24... Bc5 {[%clk 0:01:04.6]} 25. g3 {[%clk 0:00:14]} 25... Kf7 {[%clk
0:01:01.7]} 26. Rb1 {[%clk 0:00:13.9]} 26... Bb6 {[%clk 0:00:59.7]} 27. a5
{[%clk 0:00:13.2]} 27... Bc5 {[%clk 0:00:56.2]} 28. Rb7 {[%clk 0:00:13]} 28...
a6 {[%clk 0:00:55.8]} 29. Bd1 {[%clk 0:00:11.5]} 29... Rc8 {[%clk 0:00:49]} 30.
Bb3 {[%clk 0:00:10.2]} 30... Bc6 {[%clk 0:00:48.9]} 31. Rb6 {[%clk 0:00:02.8]}
31... Bxb6 {[%clk 0:00:46.4]} 32. axb6 {[%clk 0:00:03.7]} 32... e6 {[%clk
0:00:21.8]} 33. f3 {[%clk 0:00:03.1]} 33... Bb7 {[%clk 0:00:19.8]} 34. Bb4
{[%clk 0:00:03.2]} 34... Ke7 {[%clk 0:00:19.4]} 35. Kf2 {[%clk 0:00:02.7]} 35...
Kd7 {[%clk 0:00:19]} 36. Ba4+ {[%clk 0:00:02.7]} 36... Bc6 {[%clk 0:00:19]} 37.
Bc2 {[%clk 0:00:02.8]} 37... Rb8 {[%clk 0:00:19]} 38. Ba5 {[%clk 0:00:02.6]}
38... Ra8 {[%clk 0:00:18.1]} 39. Ke3 {[%clk 0:00:02.8]} 39... Kc8 {[%clk
0:00:18.2]} 40. Kd4 {[%clk 0:00:03.3]} 40... Kb7 {[%clk 0:00:18.5]} 41. f4
{[%clk 0:00:03.6]} 41... Rd8 {[%clk 0:00:18.4]} 42. Bd3 {[%clk 0:00:02.2]} 42...
e5+ {[%clk 0:00:18.5]} 43. fxe5 {[%clk 0:00:02.3]} 43... dxe5+ {[%clk
0:00:18.7]} 44. Ke3 {[%clk 0:00:03.2]} 44... Bd7 {[%clk 0:00:16.7]} 45. Bc2
{[%clk 0:00:03.8]} 45... Be6 {[%clk 0:00:16.6]} 46. Bd3 {[%clk 0:00:03.3]} 46...
Rc8 {[%clk 0:00:16.5]} 0-1